[Event "*** Titled Tuesday Blitz"]
[Site "Chess.com"]
[Date "2021.04.20"]
[Round "11"]
[White "FairChess_on_YouTube"]
[Black "Grandelicious"]
[Result "0-1"]
[WhiteElo "2994"]
[BlackElo "2835"]
[TimeControl "180+1"]
[EndTime "12:06:19 PDT"]
[Termination "Grandelicious won by resignation"]

1. Nf3 {[%clk 0:03:00.9]} 1... d5 {[%clk 0:02:59.6]} 2. e3 {[%clk 0:02:59.5]}
2... Nf6 {[%clk 0:02:57.3]} 3. b3 {[%clk 0:02:59.3]} 3... e6 {[%clk 0:02:53.3]}
4. Bb2 {[%clk 0:02:59.4]} 4... Bd6 {[%clk 0:02:52.1]} 5. c4 {[%clk 0:02:55.1]}
5... b6 {[%clk 0:02:52.5]} 6. Nc3 {[%clk 0:02:49.8]} 6... a6 {[%clk 0:02:51.9]}
7. g4 {[%clk 0:02:46.3]} 7... Bb7 {[%clk 0:02:40]} 8. g5 {[%clk 0:02:38.6]} 8...
Ne4 {[%clk 0:02:37.5]} 9. cxd5 {[%clk 0:02:34.8]} 9... exd5 {[%clk 0:02:34.1]}
10. h4 {[%clk 0:02:22.5]} 10... Nd7 {[%clk 0:02:27.7]} 11. Bh3 {[%clk
0:02:11.9]} 11... O-O {[%clk 0:02:14.3]} 12. Ne2 {[%clk 0:01:52.9]} 12... Re8
{[%clk 0:02:07.6]} 13. d3 {[%clk 0:01:47.2]} 13... Nec5 {[%clk 0:02:00]} 14.
Ned4 {[%clk 0:01:36.2]} 14... Ne5 {[%clk 0:01:52.7]} 15. Nxe5 {[%clk 0:01:32.9]}
15... Bxe5 {[%clk 0:01:53.6]} 16. Qe2 {[%clk 0:01:21.6]} 16... a5 {[%clk
0:01:47.8]} 17. O-O-O {[%clk 0:01:02.4]} 17... a4 {[%clk 0:01:44.1]} 18. b4
{[%clk 0:01:02.1]} 18... a3 {[%clk 0:01:44.7]} 19. Ba1 {[%clk 0:01:00.6]} 19...
Na4 {[%clk 0:01:33.2]} 20. g6 {[%clk 0:00:56.5]} 20... hxg6 {[%clk 0:01:28.3]}
21. h5 {[%clk 0:00:56.9]} 21... g5 {[%clk 0:01:28.5]} 22. Qf3 {[%clk 0:00:28.6]}
22... Qf6 {[%clk 0:01:15.9]} 23. Qxf6 {[%clk 0:00:23.4]} 23... Bxf6 {[%clk
0:01:16.8]} 24. Kb1 {[%clk 0:00:21]} 24... Bxd4 {[%clk 0:00:22.2]} 25. Bxd4
{[%clk 0:00:19.9]} 25... c5 {[%clk 0:00:22.5]} 26. Ba1 {[%clk 0:00:17.3]} 26...
cxb4 {[%clk 0:00:20.2]} 27. Bd7 {[%clk 0:00:17.3]} 27... Red8 {[%clk 0:00:18.4]}
28. Bxa4 {[%clk 0:00:16.8]} 28... Rxa4 {[%clk 0:00:19.3]} 29. h6 {[%clk
0:00:17.4]} 29... d4 {[%clk 0:00:19.3]} 30. Rh5 {[%clk 0:00:11.4]} 30... Bf3
{[%clk 0:00:18.7]} 31. Rxg5 {[%clk 0:00:06.1]} 31... Bxd1 {[%clk 0:00:19]} 32.
Rxg7+ {[%clk 0:00:06.2]} 32... Kf8 {[%clk 0:00:18.2]} 33. Bxd4 {[%clk
0:00:05.8]} 33... Rxd4 {[%clk 0:00:15.9]} 34. exd4 {[%clk 0:00:06.7]} 34... Bh5
{[%clk 0:00:15.8]} 35. Rh7 {[%clk 0:00:02.4]} 35... Bg6 {[%clk 0:00:15.4]} 36.
Rh8+ {[%clk 0:00:02.9]} 36... Ke7 {[%clk 0:00:16]} 37. h7 {[%clk 0:00:03.8]}
37... Kf6 {[%clk 0:00:15]} 38. Kc2 {[%clk 0:00:03.6]} 38... Ra5 {[%clk
0:00:12.5]} 39. Kb3 {[%clk 0:00:03.4]} 39... Rd5 {[%clk 0:00:12.7]} 40. Kxb4
{[%clk 0:00:03.2]} 40... Rxd4+ {[%clk 0:00:13.1]} 41. Kb5 {[%clk 0:00:03.7]}
41... Rxd3 {[%clk 0:00:13.1]} 42. Kxb6 {[%clk 0:00:03.4]} 42... Rd2 {[%clk
0:00:13.3]} 43. Rd8 {[%clk 0:00:02.8]} 43... Rxd8 {[%clk 0:00:13.1]} 0-1

[Event "*** Titled Tuesday Blitz"]
[Site "Chess.com"]
[Date "2021.04.20"]
[Round "11"]
[White "Pantata007"]
[Black "Kostukov_Alex"]
[Result "1-0"]
[WhiteElo "2241"]
[BlackElo "2310"]
[TimeControl "180+1"]
[EndTime "12:06:19 PDT"]
[Termination "Pantata007 won by resignation"]

1. d4 {[%clk 0:03:00.9]} 1... g6 {[%clk 0:02:58.2]} 2. e4 {[%clk 0:03:00.4]}
2... Bg7 {[%clk 0:02:57.9]} 3. Nc3 {[%clk 0:02:59.8]} 3... d6 {[%clk 0:02:58]}
4. Be3 {[%clk 0:02:59.5]} 4... Nf6 {[%clk 0:02:58]} 5. Qd2 {[%clk 0:02:59.6]}
5... Nc6 {[%clk 0:02:49]} 6. f3 {[%clk 0:02:57.5]} 6... O-O {[%clk 0:02:47.1]}
7. O-O-O {[%clk 0:02:56.7]} 7... e5 {[%clk 0:02:43.8]} 8. Nge2 {[%clk
0:02:56.6]} 8... exd4 {[%clk 0:02:42]} 9. Nxd4 {[%clk 0:02:55.9]} 9... Nxd4
{[%clk 0:02:38]} 10. Bxd4 {[%clk 0:02:55.3]} 10... Be6 {[%clk 0:02:38.3]} 11. h4
{[%clk 0:02:50.5]} 11... h5 {[%clk 0:02:31.4]} 12. Kb1 {[%clk 0:02:32.6]} 12...
a5 {[%clk 0:02:18.8]} 13. Qf2 {[%clk 0:02:05.2]} 13... a4 {[%clk 0:02:15.6]} 14.
e5 {[%clk 0:02:04.7]} 14... dxe5 {[%clk 0:02:02]} 15. Bxe5 {[%clk 0:02:04.1]}
15... Qc8 {[%clk 0:01:56.7]} 16. a3 {[%clk 0:01:50.6]} 16... c6 {[%clk
0:01:56.6]} 17. Re1 {[%clk 0:01:04]} 17... b5 {[%clk 0:01:54.1]} 18. g4 {[%clk
0:01:03.2]} 18... b4 {[%clk 0:01:49.7]} 19. axb4 {[%clk 0:01:01.6]} 19... a3
{[%clk 0:01:49.1]} 20. b3 {[%clk 0:00:59.7]} 20... Bxg4 {[%clk 0:01:11.6]} 21.
Ka2 {[%clk 0:00:42.8]} 21... Bf5 {[%clk 0:01:05.4]} 22. Bc4 {[%clk 0:00:27.6]}
22... Re8 {[%clk 0:00:53.4]} 23. Rhg1 {[%clk 0:00:19.9]} 23... Rxe5 {[%clk
0:00:24]} 24. Rxe5 {[%clk 0:00:19.4]} 24... Nd5 {[%clk 0:00:23.5]} 25. Nxd5
{[%clk 0:00:14.5]} 25... cxd5 {[%clk 0:00:17.1]} 26. Rxd5 {[%clk 0:00:14]} 26...
Qb8 {[%clk 0:00:13.6]} 27. Rxf5 {[%clk 0:00:09.9]} 27... Qxb4 {[%clk 0:00:12.8]}
28. Rxf7 {[%clk 0:00:04.9]} 28... Kh8 {[%clk 0:00:08.5]} 29. Rxg7 {[%clk
0:00:04.8]} 29... Kxg7 {[%clk 0:00:08.1]} 30. Qd4+ {[%clk 0:00:05]} 30... Kh6
{[%clk 0:00:06.9]} 31. Qf4+ {[%clk 0:00:04.7]} 31... Kg7 {[%clk 0:00:06.3]} 32.
Qe5+ {[%clk 0:00:04.8]} 32... Kf8 {[%clk 0:00:03.9]} 33. Qf6+ {[%clk 0:00:03]}
33... Ke8 {[%clk 0:00:04.2]} 34. Qxg6+ {[%clk 0:00:03.1]} 34... Kd8 {[%clk
0:00:04.1]} 35. Qg8+ {[%clk 0:00:03.3]} 35... Kc7 {[%clk 0:00:04.2]} 36. Qxa8
{[%clk 0:00:03.5]} 36... Qc3 {[%clk 0:00:05.1]} 37. Qa7+ {[%clk 0:00:02.4]}
37... Kd6 {[%clk 0:00:06]} 38. Qxa3+ {[%clk 0:00:02.5]} 38... Ke5 {[%clk
0:00:06.9]} 39. Qb2 {[%clk 0:00:02.7]} 39... Qxb2+ {[%clk 0:00:06]} 40. Kxb2
{[%clk 0:00:03.6]} 40... Kf4 {[%clk 0:00:06.9]} 41. Rg5 {[%clk 0:00:03.5]} 41...
Kxf3 {[%clk 0:00:07.8]} 42. Rxh5 {[%clk 0:00:04]} 42... Kg3 {[%clk 0:00:08.6]}
43. Rd5 {[%clk 0:00:04.7]} 43... Kxh4 {[%clk 0:00:09.5]} 44. b4 {[%clk
0:00:05.1]} 44... Kg4 {[%clk 0:00:10.4]} 45. b5 {[%clk 0:00:06]} 45... Kf4
{[%clk 0:00:11.3]} 46. b6 {[%clk 0:00:06.9]} 46... Ke4 {[%clk 0:00:12.2]} 47. b7
{[%clk 0:00:07.8]} 1-0

[Event "*** Titled Tuesday Blitz"]
[Site "Chess.com"]
[Date "2021.04.20"]
[Round "11"]
[White "SanchezKelvin"]
[Black "ViktoriyaTarasova"]
[Result "1-0"]
[WhiteElo "180"]
[BlackElo "2418"]
[TimeControl "180+1"]
[EndTime "12:06:21 PDT"]
[Termination "SanchezKelvin won by checkmate"]

1. e4 {[%clk 0:03:00.9]} 1... c5 {[%clk 0:02:59.3]} 2. Nf3 {[%clk 0:03:00.4]}
2... d6 {[%clk 0:02:59.1]} 3. d4 {[%clk 0:03:01.3]} 3... cxd4 {[%clk 0:02:58.8]}
4. Nxd4 {[%clk 0:03:02.2]} 4... Nf6 {[%clk 0:02:58.7]} 5. Nc3 {[%clk 0:03:02.8]}
5... a6 {[%clk 0:02:59.2]} 6. Bg5 {[%clk 0:03:00.6]} 6... e6 {[%clk 0:02:59.1]}
7. f4 {[%clk 0:03:00.7]} 7... Qb6 {[%clk 0:02:58.5]} 8. Nb3 {[%clk 0:03:00.7]}
8... Be7 {[%clk 0:02:57.5]} 9. Qf3 {[%clk 0:03:00]} 9... Nbd7 {[%clk 0:02:57.2]}
10. O-O-O {[%clk 0:02:59.8]} 10... Qc7 {[%clk 0:02:57.7]} 11. h4 {[%clk
0:02:57.9]} 11... b5 {[%clk 0:02:54.7]} 12. a3 {[%clk 0:02:57.5]} 12... Bb7
{[%clk 0:02:54.3]} 13. g4 {[%clk 0:02:53.6]} 13... h6 {[%clk 0:02:49.6]} 14.
Bxf6 {[%clk 0:02:51.2]} 14... Bxf6 {[%clk 0:02:50.2]} 15. Nd4 {[%clk 0:02:44.6]}
15... Qb6 {[%clk 0:02:39.3]} 16. Nde2 {[%clk 0:02:18.7]} 16... b4 {[%clk
0:02:13.8]} 17. axb4 {[%clk 0:02:16.8]} 17... Qxb4 {[%clk 0:02:13.7]} 18. g5
{[%clk 0:02:16.6]} 18... Be7 {[%clk 0:02:08.3]} 19. Rd4 {[%clk 0:02:12.5]} 19...
Qb6 {[%clk 0:02:01.7]} 20. g6 {[%clk 0:02:11.3]} 20... f5 {[%clk 0:01:42.5]} 21.
Bg2 {[%clk 0:02:01.9]} 21... Rb8 {[%clk 0:01:37.1]} 22. b3 {[%clk 0:01:49.9]}
22... Nc5 {[%clk 0:01:27.6]} 23. Qe3 {[%clk 0:01:40.4]} 23... Bf6 {[%clk
0:01:16.8]} 24. e5 {[%clk 0:01:22.4]} 24... Bxg2 {[%clk 0:01:01.9]} 25. Rg1
{[%clk 0:01:18]} 25... dxe5 {[%clk 0:00:43.6]} 26. fxe5 {[%clk 0:01:16.2]} 26...
Bxh4 {[%clk 0:00:38.7]} 27. Rxg2 {[%clk 0:01:11.9]} 27... Be7 {[%clk 0:00:21.4]}
28. Kd1 {[%clk 0:00:58.4]} 28... Rd8 {[%clk 0:00:20.5]} 29. Rxd8+ {[%clk
0:00:56.3]} 29... Qxd8+ {[%clk 0:00:20.9]} 30. Qd4 {[%clk 0:00:55.8]} 30... Qc7
{[%clk 0:00:19.2]} 31. Kc1 {[%clk 0:00:42.7]} 31... O-O {[%clk 0:00:18.9]} 32.
Kb2 {[%clk 0:00:39.4]} 32... Rd8 {[%clk 0:00:18.4]} 33. Qc4 {[%clk 0:00:37.1]}
33... Qc6 {[%clk 0:00:18.1]} 34. Rg1 {[%clk 0:00:35.1]} 34... Rb8 {[%clk
0:00:15.9]} 35. Rd1 {[%clk 0:00:31.7]} 35... Qb6 {[%clk 0:00:09]} 36. Nd4 {[%clk
0:00:27.7]} 36... a5 {[%clk 0:00:08.5]} 37. Nxf5 {[%clk 0:00:27]} 37... Bf8
{[%clk 0:00:08.9]} 38. Nd6 {[%clk 0:00:24.7]} 38... a4 {[%clk 0:00:08.4]} 39.
Nxa4 {[%clk 0:00:23.9]} 39... Nxa4+ {[%clk 0:00:08.1]} 40. Qxa4 {[%clk
0:00:23.6]} 40... Bxd6 {[%clk 0:00:07.9]} 41. exd6 {[%clk 0:00:23.1]} 41... Qc5
{[%clk 0:00:08.5]} 42. Qd4 {[%clk 0:00:20.5]} 42... Qxd4+ {[%clk 0:00:07.5]} 43.
Rxd4 {[%clk 0:00:20]} 43... Rd8 {[%clk 0:00:07.6]} 44. c4 {[%clk 0:00:19.7]}
44... e5 {[%clk 0:00:08.1]} 45. Rd5 {[%clk 0:00:19.8]} 45... e4 {[%clk
0:00:08.9]} 46. c5 {[%clk 0:00:20.2]} 46... e3 {[%clk 0:00:08.1]} 47. Kc2 {[%clk
0:00:20]} 47... e2 {[%clk 0:00:08.4]} 48. Kd2 {[%clk 0:00:20.1]} 48... Re8
{[%clk 0:00:08.9]} 49. Ke1 {[%clk 0:00:20.5]} 49... h5 {[%clk 0:00:09.1]} 50. c6
{[%clk 0:00:20.9]} 50... h4 {[%clk 0:00:08.9]} 51. d7 {[%clk 0:00:21.4]} 51...
Ra8 {[%clk 0:00:09.1]} 52. d8=Q+ {[%clk 0:00:21.2]} 52... Rxd8 {[%clk
0:00:08.8]} 53. Rxd8# {[%clk 0:00:22.1]} 1-0

[Event "*** Titled Tuesday Blitz"]
[Site "Chess.com"]
[Date "2021.04.20"]
[Round "11"]
[White "lamomiablanca"]
[Black "Grandmaster2B"]
[Result "0-1"]
[WhiteElo "2395"]
[BlackElo "2527"]
[TimeControl "180+1"]
[EndTime "12:06:27 PDT"]
[Termination "Grandmaster2B won by resignation"]

1. e4 {[%clk 0:03:00.9]} 1... c5 {[%clk 0:02:59.3]} 2. d3 {[%clk 0:03:00.5]}
2... Nc6 {[%clk 0:02:57.9]} 3. g3 {[%clk 0:03:00.7]} 3... Nf6 {[%clk 0:02:58.4]}
4. Bg2 {[%clk 0:03:00]} 4... d5 {[%clk 0:02:59]} 5. Nd2 {[%clk 0:02:56]} 5... g6
{[%clk 0:02:57.8]} 6. Ngf3 {[%clk 0:02:54.9]} 6... Bg7 {[%clk 0:02:57.5]} 7. O-O
{[%clk 0:02:55]} 7... O-O {[%clk 0:02:58]} 8. Re1 {[%clk 0:02:54.6]} 8... b6
{[%clk 0:02:53.9]} 9. c3 {[%clk 0:02:52.3]} 9... Ba6 {[%clk 0:02:53.2]} 10. Qa4
{[%clk 0:02:45.4]} 10... Qc8 {[%clk 0:02:43.1]} 11. Bf1 {[%clk 0:02:32.1]} 11...
dxe4 {[%clk 0:02:35.6]} 12. dxe4 {[%clk 0:02:30.8]} 12... Bxf1 {[%clk
0:02:36.5]} 13. Nxf1 {[%clk 0:02:29.7]} 13... Rd8 {[%clk 0:02:31.1]} 14. Bf4
{[%clk 0:02:24.7]} 14... a6 {[%clk 0:02:28.4]} 15. Rad1 {[%clk 0:02:22.5]} 15...
b5 {[%clk 0:02:27.4]} 16. Qc2 {[%clk 0:02:22.4]} 16... Nh5 {[%clk 0:02:20.5]}
17. Bc1 {[%clk 0:02:11]} 17... Qg4 {[%clk 0:02:17.1]} 18. Qe2 {[%clk 0:02:06.1]}
18... Ne5 {[%clk 0:01:59]} 19. Kg2 {[%clk 0:01:37.8]} 19... Nc6 {[%clk
0:01:32.3]} 20. h3 {[%clk 0:01:28.1]} 20... Qe6 {[%clk 0:01:31.8]} 21. a3 {[%clk
0:01:15.7]} 21... Na5 {[%clk 0:01:26.9]} 22. Ng5 {[%clk 0:01:06.3]} 22... Qc6
{[%clk 0:01:18.4]} 23. g4 {[%clk 0:00:46.9]} 23... Nf6 {[%clk 0:01:16.9]} 24.
Ng3 {[%clk 0:00:46]} 24... Nc4 {[%clk 0:01:11.2]} 25. f4 {[%clk 0:00:33.6]}
25... Qc7 {[%clk 0:00:59.5]} 26. Nf3 {[%clk 0:00:31.1]} 26... e6 {[%clk
0:00:55.1]} 27. e5 {[%clk 0:00:20.8]} 27... Nd5 {[%clk 0:00:54]} 28. Ne4 {[%clk
0:00:20.2]} 28... Qc6 {[%clk 0:00:44.1]} 29. b3 {[%clk 0:00:16.9]} 29... Na5
{[%clk 0:00:37.8]} 30. Qc2 {[%clk 0:00:16.9]} 30... Ne7 {[%clk 0:00:27.6]} 31.
Kg3 {[%clk 0:00:15.3]} 31... Rd5 {[%clk 0:00:19.9]} 32. Nd6 {[%clk 0:00:09.6]}
32... Nb7 {[%clk 0:00:16.3]} 33. Nxb7 {[%clk 0:00:07.4]} 33... Qxb7 {[%clk
0:00:17.2]} 34. c4 {[%clk 0:00:07.7]} 34... Rd7 {[%clk 0:00:15.7]} 35. Rxd7
{[%clk 0:00:05.9]} 35... Qxd7 {[%clk 0:00:15.8]} 36. Rd1 {[%clk 0:00:06.3]}
36... Qc7 {[%clk 0:00:14.5]} 37. Qe4 {[%clk 0:00:05.9]} 37... Rc8 {[%clk
0:00:13.6]} 38. Be3 {[%clk 0:00:06.1]} 38... h5 {[%clk 0:00:11.4]} 39. Rd6
{[%clk 0:00:04.8]} 39... bxc4 {[%clk 0:00:07.9]} 40. bxc4 {[%clk 0:00:04.8]}
40... a5 {[%clk 0:00:08.3]} 41. Rd1 {[%clk 0:00:04.9]} 41... Rb8 {[%clk
0:00:07.1]} 42. gxh5 {[%clk 0:00:05.3]} 42... Nf5+ {[%clk 0:00:07]} 43. Kf2
{[%clk 0:00:05.5]} 43... gxh5 {[%clk 0:00:07.9]} 44. Rg1 {[%clk 0:00:03.9]}
44... Rb2+ {[%clk 0:00:08]} 45. Nd2 {[%clk 0:00:04.2]} 45... Qd7 {[%clk
0:00:07.9]} 46. Ke2 {[%clk 0:00:03.8]} 46... Kf8 {[%clk 0:00:06.9]} 47. Qf3
{[%clk 0:00:03.1]} 47... Rxd2+ {[%clk 0:00:05.4]} 48. Bxd2 {[%clk 0:00:03.1]}
48... Nd4+ {[%clk 0:00:05.9]} 0-1

[Event "*** Titled Tuesday Blitz"]
[Site "Chess.com"]
[Date "2021.04.20"]
[Round "11"]
[White "prachiti01"]
[Black "Blitzking642"]
[Result "1-0"]
[WhiteElo "2274"]
[BlackElo "2456"]
[TimeControl "180+1"]
[EndTime "12:06:29 PDT"]
[Termination "prachiti01 won by resignation"]

1. e4 {[%clk 0:03:00.9]} 1... c5 {[%clk 0:02:59.9]} 2. c3 {[%clk 0:03:00.4]}
2... Nf6 {[%clk 0:02:59.2]} 3. e5 {[%clk 0:03:00.3]} 3... Nd5 {[%clk 0:02:59.8]}
4. Nf3 {[%clk 0:03:00.6]} 4... Nc6 {[%clk 0:02:59.4]} 5. Bc4 {[%clk 0:03:01.1]}
5... Nb6 {[%clk 0:02:58]} 6. Bb3 {[%clk 0:03:01.4]} 6... c4 {[%clk 0:02:56.4]}
7. Bc2 {[%clk 0:03:01.4]} 7... d6 {[%clk 0:02:56.9]} 8. exd6 {[%clk 0:03:00.4]}
8... Qxd6 {[%clk 0:02:57.8]} 9. O-O {[%clk 0:03:00.2]} 9... Bg4 {[%clk
0:02:54.8]} 10. b3 {[%clk 0:02:54.6]} 10... Qf6 {[%clk 0:02:29.8]} 11. Qe2
{[%clk 0:02:44]} 11... Bxf3 {[%clk 0:02:03.6]} 12. Qxf3 {[%clk 0:02:40.8]} 12...
Qxf3 {[%clk 0:02:02.7]} 13. gxf3 {[%clk 0:02:41.7]} 13... Ne5 {[%clk 0:01:56.7]}
14. Kg2 {[%clk 0:02:40.3]} 14... O-O-O {[%clk 0:01:49.4]} 15. Re1 {[%clk
0:02:39.4]} 15... Nd3 {[%clk 0:01:47.5]} 16. Bxd3 {[%clk 0:02:39.3]} 16... Rxd3
{[%clk 0:01:43.8]} 17. Na3 {[%clk 0:02:38.4]} 17... e6 {[%clk 0:01:35.7]} 18.
Nxc4 {[%clk 0:02:36.5]} 18... Nxc4 {[%clk 0:01:34.7]} 19. bxc4 {[%clk
0:02:37.4]} 19... Bc5 {[%clk 0:01:30.4]} 20. Rb1 {[%clk 0:02:33]} 20... Kc7
{[%clk 0:01:23.4]} 21. Re2 {[%clk 0:02:14.8]} 21... b6 {[%clk 0:01:23.3]} 22.
Rb3 {[%clk 0:02:11.6]} 22... Rhd8 {[%clk 0:01:20]} 23. a4 {[%clk 0:02:07.5]}
23... a5 {[%clk 0:01:16.1]} 24. Rb5 {[%clk 0:02:04.5]} 24... Kc6 {[%clk
0:01:12.4]} 25. Re4 {[%clk 0:01:57.9]} 25... R8d6 {[%clk 0:00:57.7]} 26. h3
{[%clk 0:01:26.6]} 26... f6 {[%clk 0:00:49.7]} 27. f4 {[%clk 0:01:19.9]} 27...
Kd7 {[%clk 0:00:29.5]} 28. Rb3 {[%clk 0:01:13.7]} 28... Ke7 {[%clk 0:00:28]} 29.
f5 {[%clk 0:01:05.1]} 29... Kf7 {[%clk 0:00:26.7]} 30. fxe6+ {[%clk 0:00:55.1]}
30... Rxe6 {[%clk 0:00:27.6]} 31. f3 {[%clk 0:00:52.4]} 31... f5 {[%clk
0:00:21.6]} 32. Rxe6 {[%clk 0:00:50.7]} 32... Kxe6 {[%clk 0:00:22.5]} 33. Rb5
{[%clk 0:00:49.2]} 33... g6 {[%clk 0:00:16.2]} 34. f4 {[%clk 0:00:49.2]} 34...
Kf6 {[%clk 0:00:15.2]} 35. Kf1 {[%clk 0:00:47.2]} 35... h6 {[%clk 0:00:13.9]}
36. Ke2 {[%clk 0:00:46.4]} 36... Rxh3 {[%clk 0:00:14.1]} 37. d4 {[%clk
0:00:46.4]} 37... Rh2+ {[%clk 0:00:14]} 38. Kd3 {[%clk 0:00:46]} 38... Rh3+
{[%clk 0:00:13.4]} 39. Be3 {[%clk 0:00:46.1]} 39... Bd6 {[%clk 0:00:12.1]} 40.
Rxb6 {[%clk 0:00:46.2]} 40... Ke7 {[%clk 0:00:12.8]} 41. Rb7+ {[%clk 0:00:44.8]}
41... Ke6 {[%clk 0:00:11.9]} 42. d5+ {[%clk 0:00:44.7]} 42... Kf6 {[%clk
0:00:12.1]} 43. Ke2 {[%clk 0:00:41.8]} 43... Rh2+ {[%clk 0:00:11]} 44. Kf1
{[%clk 0:00:40.4]} 44... g5 {[%clk 0:00:02.9]} 45. Bd4+ {[%clk 0:00:40.1]} 45...
Kg6 {[%clk 0:00:03.4]} 46. Rb6 {[%clk 0:00:40.2]} 46... Kh5 {[%clk 0:00:03.6]}
47. Rxd6 {[%clk 0:00:39.9]} 47... Kg4 {[%clk 0:00:04.2]} 48. fxg5 {[%clk
0:00:39.8]} 48... hxg5 {[%clk 0:00:04.3]} 49. Rf6 {[%clk 0:00:38.2]} 49... f4
{[%clk 0:00:04.7]} 50. Kg1 {[%clk 0:00:36.8]} 50... Rc2 {[%clk 0:00:03.6]} 51.
d6 {[%clk 0:00:33]} 51... Kg3 {[%clk 0:00:04]} 52. Kf1 {[%clk 0:00:26.2]} 52...
Kf3 {[%clk 0:00:04.5]} 53. Ke1 {[%clk 0:00:25.2]} 53... g4 {[%clk 0:00:04.8]}
54. d7 {[%clk 0:00:24.4]} 54... Re2+ {[%clk 0:00:05.2]} 55. Kd1 {[%clk
0:00:24.2]} 1-0

[Event "*** Titled Tuesday Blitz"]
[Site "Chess.com"]
[Date "2021.04.20"]
[Round "11"]
[White "Zhigalko_Sergei"]
[Black "ChristopherYoo"]
[Result "0-1"]
[WhiteElo "2935"]
[BlackElo "2915"]
[TimeControl "180+1"]
[EndTime "12:06:30 PDT"]
[Termination "ChristopherYoo won by checkmate"]

1. e4 {[%clk 0:03:00.9]} 1... c5 {[%clk 0:02:58.8]} 2. Nf3 {[%clk 0:03:00.8]}
2... e6 {[%clk 0:02:59]} 3. c3 {[%clk 0:03:01.1]} 3... d5 {[%clk 0:02:58.8]} 4.
e5 {[%clk 0:03:01.7]} 4... d4 {[%clk 0:02:56.1]} 5. Bd3 {[%clk 0:03:01.6]} 5...
Bd7 {[%clk 0:02:53.4]} 6. O-O {[%clk 0:02:58.6]} 6... Bc6 {[%clk 0:02:52.7]} 7.
Re1 {[%clk 0:02:58.9]} 7... g5 {[%clk 0:02:48.9]} 8. b4 {[%clk 0:02:58.9]} 8...
g4 {[%clk 0:02:22.5]} 9. b5 {[%clk 0:02:57.4]} 9... Bd7 {[%clk 0:02:20.2]} 10.
cxd4 {[%clk 0:02:55.3]} 10... gxf3 {[%clk 0:02:14.6]} 11. Qxf3 {[%clk
0:02:55.5]} 11... Bc8 {[%clk 0:02:08.6]} 12. Nc3 {[%clk 0:02:42.3]} 12... cxd4
{[%clk 0:02:00]} 13. Ne4 {[%clk 0:02:41.9]} 13... Nd7 {[%clk 0:01:59.4]} 14. Qf4
{[%clk 0:02:23]} 14... Nh6 {[%clk 0:01:25.5]} 15. Bb2 {[%clk 0:01:43.5]} 15...
Rg8 {[%clk 0:01:24.2]} 16. Bxd4 {[%clk 0:01:36.3]} 16... Nf5 {[%clk 0:01:21.9]}
17. Bb2 {[%clk 0:01:14.7]} 17... Qh4 {[%clk 0:01:15.2]} 18. Qf3 {[%clk
0:01:13.6]} 18... Qg4 {[%clk 0:01:06.4]} 19. Qxg4 {[%clk 0:01:13]} 19... Rxg4
{[%clk 0:01:07.3]} 20. Rac1 {[%clk 0:01:12.6]} 20... b6 {[%clk 0:00:42.4]} 21.
h3 {[%clk 0:00:47.5]} 21... Rg8 {[%clk 0:00:38.8]} 22. Rc7 {[%clk 0:00:47.2]}
22... Kd8 {[%clk 0:00:37]} 23. Rec1 {[%clk 0:00:45.1]} 23... Rb8 {[%clk
0:00:28.3]} 24. a4 {[%clk 0:00:40.8]} 24... Bc5 {[%clk 0:00:20.9]} 25. Rxa7
{[%clk 0:00:36.2]} 25... Bb7 {[%clk 0:00:20.4]} 26. Kf1 {[%clk 0:00:22.1]} 26...
Bd4 {[%clk 0:00:16.6]} 27. Bxd4 {[%clk 0:00:18.7]} 27... Nxd4 {[%clk 0:00:17.5]}
28. f4 {[%clk 0:00:14.7]} 28... Nb3 {[%clk 0:00:13.6]} 29. Rc2 {[%clk 0:00:13]}
29... Ndc5 {[%clk 0:00:13.1]} 30. Nxc5 {[%clk 0:00:11.3]} 30... Nxc5 {[%clk
0:00:14]} 31. Bxh7 {[%clk 0:00:10]} 31... Rg7 {[%clk 0:00:11.2]} 32. d4 {[%clk
0:00:10.3]} 32... Nb3 {[%clk 0:00:08.7]} 33. Bd3 {[%clk 0:00:05.9]} 33... Nxd4
{[%clk 0:00:09]} 34. Rc4 {[%clk 0:00:05]} 34... Nb3 {[%clk 0:00:08.7]} 35. g4
{[%clk 0:00:04.7]} 35... Nd2+ {[%clk 0:00:08.4]} 36. Kf2 {[%clk 0:00:05.3]}
36... Nxc4 {[%clk 0:00:09.3]} 37. Bxc4 {[%clk 0:00:06.2]} 37... Rc8 {[%clk
0:00:06.8]} 38. Bd3 {[%clk 0:00:03.7]} 38... Rc3 {[%clk 0:00:06.1]} 39. Be2
{[%clk 0:00:02.2]} 39... Kc7 {[%clk 0:00:05.1]} 40. a5 {[%clk 0:00:02.8]} 40...
bxa5 {[%clk 0:00:04.4]} 41. Rxa5 {[%clk 0:00:03.7]} 41... Kb6 {[%clk 0:00:04.9]}
42. Ra2 {[%clk 0:00:03.4]} 42... Rxh3 {[%clk 0:00:05]} 43. g5 {[%clk 0:00:03.7]}
43... Rgh7 {[%clk 0:00:04.7]} 44. Rd2 {[%clk 0:00:03.5]} 44... Rh2+ {[%clk
0:00:04.9]} 45. Ke3 {[%clk 0:00:03.6]} 45... R7h3+ {[%clk 0:00:05.1]} 46. Kd4
{[%clk 0:00:04.1]} 46... Bf3 {[%clk 0:00:05.3]} 47. Bxf3 {[%clk 0:00:01.7]}
47... Rxd2+ {[%clk 0:00:06.2]} 48. Ke3 {[%clk 0:00:02.6]} 48... Rb2 {[%clk
0:00:06.2]} 49. g6 {[%clk 0:00:03.5]} 49... Rb3+ {[%clk 0:00:06.3]} 50. Kd4
{[%clk 0:00:04.2]} 50... Rhxf3 {[%clk 0:00:05.6]} 51. g7 {[%clk 0:00:04.6]}
51... Rxf4# {[%clk 0:00:05.5]} 0-1